bitfinex-derivatives/quotes_BTCF0:USTF0_20251217
["timestamp","ask_amount","ask_price","bid_price","bid_amount"]
[1765941310881,0.00017149,87492.0,87491.0,0.05639]
[1765941311084,0.00017149,87492.0,87491.0,0.11779001]
[1765941312186,0.05723149,87492.0,87491.0,0.11779001]
[1765941314077,0.00017149,87492.0,87491.0,0.11779001]
[1765941314291,0.02773149,87492.0,87491.0,0.11779001]
[1765941314489,0.05723149,87492.0,87491.0,0.11779001]
[1765941317394,0.05723149,87492.0,87491.0,0.05639]
[1765941317892,0.00017149,87492.0,87491.0,0.05639]
[1765941318595,0.02773149,87492.0,87491.0,0.05639]
[1765941318788,0.02773149,87492.0,87491.0,0.11779001]
[1765941319088,0.02773149,87492.0,87491.0,0.05639]
[1765941319696,0.00017149,87492.0,87491.0,0.05639]
[1765941320984,0.00017149,87492.0,87491.0,0.05739]
[1765941321492,0.00017149,87492.0,87491.0,0.05639]
[1765941321696,0.00017149,87492.0,87491.0,0.05739]
[1765941321989,0.00017149,87492.0,87491.0,0.05839]
[1765941322393,0.02773149,87492.0,87491.0,0.05839]
[1765941322595,0.05723149,87492.0,87491.0,0.05839]
[1765941322902,0.02773149,87492.0,87491.0,0.05839]
[1765941323198,0.02773149,87492.0,87491.0,0.05739]
[1765941323403,0.02773149,87492.0,87491.0,0.11977184]
[1765941323995,0.02773149,87492.0,87491.0,0.11877184]
[1765941324195,0.02773149,87492.0,87491.0,0.11777184]
[1765941324606,0.02773149,87492.0,87491.0,0.11877184]
[1765941326806,0.00017149,87492.0,87491.0,0.11877184]
[1765941329314,0.00017149,87492.0,87491.0,0.05739]
[1765941330304,0.00017149,87492.0,87491.0,0.41819]
[1765941330911,0.0114311,87500.0,87499.0,0.02825]
[1765941331115,0.0114311,87500.0,87499.0,0.05639]
[1765941332210,0.0114311,87500.0,87499.0,0.0678212]
[1765941333819,0.0389911,87500.0,87499.0,0.05639]
[1765941334316,0.0389911,87500.0,87499.0,0.05739]
[1765941334916,0.0389911,87500.0,87499.0,0.05639]
[1765941335425,0.0684911,87500.0,87499.0,0.05639]
[1765941335613,0.0389911,87500.0,87499.0,0.05639]
[1765941336226,0.3722304,87505.0,87504.0,0.07385]
[1765941336416,0.39662956,87505.0,87504.0,0.07385]
[1765941336621,0.3722304,87505.0,87504.0,0.07385]
[1765941337014,0.00017149,87508.0,87507.0,0.05613]
[1765941337209,0.00017149,87508.0,87507.0,0.06739216]
[1765941337525,0.03863149,87508.0,87507.0,0.05613]
[1765941337721,0.01160149,87508.0,87507.0,0.05613]
[1765941339922,0.01160149,87508.0,87507.0,0.11751599]
[1765941340119,0.00017149,87508.0,87507.0,0.47831599]
[1765941340322,0.00017149,87508.0,87507.0,0.478379]
[1765941341422,0.00017149,87508.0,87507.0,0.41693]
[1765941343016,0.00017149,87508.0,87507.0,0.478379]
[1765941343221,0.00017149,87508.0,87507.0,0.41793]
[1765941351827,0.00017149,87508.0,87507.0,1.13217]
[1765941352023,0.09510965,87531.0,87530.0,0.05613]
[1765941353128,0.09710965,87531.0,87530.0,0.05613]
[1765941353932,0.0678371,87531.0,87530.0,0.05613]
[1765941354329,0.0668371,87531.0,87530.0,0.05613]
[1765941354533,0.0678371,87531.0,87530.0,0.05613]
[1765941356922,0.0668371,87531.0,87530.0,0.05613]
[1765941357121,0.0678371,87531.0,87530.0,0.05613]
[1765941358033,0.0668371,87531.0,87530.0,0.05613]
[1765941358233,0.0678371,87531.0,87530.0,0.05613]
[1765941359034,0.0668371,87531.0,87530.0,0.05613]
[1765941359239,0.0678371,87531.0,87530.0,0.05613]
[1765941359838,0.0668371,87531.0,87530.0,0.05613]
[1765941360037,0.0678371,87531.0,87530.0,0.05613]
[1765941360242,0.05641,87531.0,87530.0,0.05613]
[1765941362642,0.05541,87531.0,87530.0,0.05613]
[1765941362841,0.05641,87531.0,87530.0,0.05613]
[1765941365145,0.05541,87531.0,87530.0,0.05613]
[1765941368937,0.05774,87525.0,87524.0,0.07349]
[1765941369344,0.0691678,87525.0,87524.0,0.05577]
[1765941369937,0.4299678,87525.0,87524.0,0.05577]
[1765941370848,0.4309678,87525.0,87524.0,0.05577]
[1765941372038,0.4319678,87525.0,87524.0,0.05577]
[1765941372436,0.4309678,87525.0,87524.0,0.05577]
[1765941372641,0.4319678,87525.0,87524.0,0.05577]
[1765941375049,0.4319678,87525.0,87522.0,0.04110825]
[1765941375244,0.05774,87523.0,87522.0,0.00017137]
[1765941375444,0.08197347,87523.0,87522.0,0.00017137]
[1765941377240,0.08297347,87523.0,87522.0,0.00017137]
[1765941378050,0.08397347,87523.0,87522.0,0.00017137]
[1765941379648,0.11237455,87523.0,87522.0,0.00017137]
[1765941386362,0.1124045,87523.0,87522.0,0.00017137]
[1765941408566,0.01143,87508.0,87506.0,0.06140532]
[1765941408873,0.05816,87499.0,87497.0,0.06140532]
[1765941409181,0.0695918,87494.0,87493.0,0.02814]
[1765941409379,0.0695922,87491.0,87490.0,0.02814]
[1765941409564,0.4303922,87491.0,87490.0,0.02814]
[1765941409767,0.4303922,87491.0,87470.0,0.10256528]
[1765941409768,0.05816,87483.0,87482.0,0.06157669]
[1765941409971,0.08243116,87483.0,87482.0,0.00017137]
[1765941410368,0.08240293,87483.0,87482.0,0.00017137]
[1765941411880,0.08240293,87483.0,87482.0,0.05811137]
[1765941412082,0.08240293,87483.0,87482.0,0.00117137]
[1765941412268,0.05816,87483.0,87482.0,0.00117137]
[1765941413671,0.05816,87483.0,87482.0,0.02931137]
[1765941414480,0.05816,87483.0,87482.0,0.00117137]
[1765941415270,0.05816,87483.0,87482.0,0.02931137]
[1765941416183,0.05816,87483.0,87482.0,0.00117137]
[1765941416382,0.05816,87483.0,87482.0,0.05911137]
[1765941416585,0.05816,87483.0,87482.0,0.02931137]
[1765941418075,0.05816,87483.0,87482.0,0.05911137]
[1765941419980,0.05816,87483.0,87482.0,0.02931137]
[1765941420186,0.05816,87483.0,87482.0,0.00117137]
[1765941420575,0.09816,87483.0,87482.0,0.00117137]
[1765941420780,0.05816,87483.0,87482.0,0.00117137]
[1765941421790,0.05916,87483.0,87482.0,0.00017137]
[1765941422185,0.05916,87483.0,87482.0,0.05811137]
[1765941422385,0.06116,87483.0,87482.0,0.05811137]
[1765941423487,0.77552,87483.0,87482.0,0.05811137]
[1765941425482,0.77452,87483.0,87482.0,0.05811137]
[1765941425678,0.06016,87483.0,87482.0,0.05811137]
[1765941425880,0.002,87483.0,87482.0,0.05811137]
[1765941426180,0.002,87483.0,87482.0,0.45811137]
[1765941427189,0.001,87483.0,87482.0,0.45911137]
[1765941427590,0.0114325,87489.0,87488.0,0.05739]
[1765941427982,0.428182,87493.0,87492.0,0.05739]
[1765941428188,0.400472,87493.0,87492.0,0.05739]
[1765941428689,0.38904,87493.0,87492.0,0.05739]
[1765941428893,0.3608,87493.0,87492.0,0.05739]
[1765941429092,0.38904,87493.0,87492.0,0.05739]
[1765941429390,0.41675,87493.0,87492.0,0.05739]
[1765941431186,0.41675,87493.0,87492.0,0.05839]
[1765941431690,0.41675,87493.0,87492.0,0.07543]
[1765941433096,0.41675,87493.0,87492.0,0.05839]
[1765941434285,0.41675,87493.0,87492.0,0.001]
[1765941434685,0.05595,87486.0,87485.0,0.07443]
[1765941435884,0.05595,87486.0,87485.0,0.07543]
[1765941439283,0.05595,87486.0,87485.0,0.02973]
[1765941439488,0.05595,87486.0,87482.0,0.00017137]
[1765941439489,0.05595,87483.0,87482.0,0.02990137]
[1765941439692,0.05595,87483.0,87482.0,0.05756137]
[1765941448195,0.05595,87483.0,87482.0,0.02990137]
[1765941448392,0.05595,87483.0,87482.0,0.00017137]
[1765941449195,0.08056946,87483.0,87482.0,0.00017137]
[1765941451191,0.12056946,87483.0,87482.0,0.00017137]
[1765941451396,0.08056946,87483.0,87482.0,0.00017137]
[1765941452598,0.08256946,87483.0,87482.0,0.00017137]
[1765941453803,0.10256946,87483.0,87482.0,0.00017137]
[1765941454107,0.05595,87465.0,87464.0,0.11891313]
[1765941455198,0.0673856,87465.0,87464.0,0.11891313]
[1765941455500,0.05595,87465.0,87464.0,0.11991313]
[1765941455700,0.05595,87465.0,87464.0,0.05850781]
[1765941458303,0.05595,87465.0,87464.0,0.00111781]
[1765941460005,0.05595,87465.0,87464.0,0.05878781]
[1765941462804,0.05595,87465.0,87464.0,0.03099781]
[1765941462997,0.05595,87465.0,87464.0,0.00111781]
[1765941466804,0.41675,87465.0,87464.0,0.00111781]
[1765941469798,0.4413424,87465.0,87464.0,0.00111781]
[1765941470807,0.4413424,87465.0,87464.0,0.03099781]
[1765941472111,0.4413424,87465.0,87464.0,0.00111781]
[1765941472603,0.4813424,87465.0,87464.0,0.00111781]
[1765941472803,0.4413424,87465.0,87464.0,0.00111781]
[1765941473010,0.4813424,87465.0,87464.0,0.00111781]
[1765941473204,0.4413424,87465.0,87464.0,0.00111781]
[1765941473404,0.4813424,87465.0,87464.0,0.00111781]
[1765941474306,0.4413424,87465.0,87464.0,0.00111781]
[1765941474511,0.4813424,87465.0,87464.0,0.00111781]
[1765941475607,0.4813424,87465.0,87458.0,0.00228683]
[1765941475608,0.0693164,87459.0,87458.0,0.00228683]
[1765941475798,1.2092688,87459.0,87458.0,0.00228683]
[1765941476504,1.20937678,87459.0,87458.0,0.00228683]
[1765941476704,1.20937678,87459.0,87458.0,0.00328683]
[1765941477307,1.20937678,87459.0,87458.0,0.00228683]
[1765941480500,0.45481678,87459.0,87458.0,0.05995683]
[1765941481110,0.41878798,87459.0,87458.0,0.05995683]
[1765941481305,0.40232438,87459.0,87458.0,0.05995683]
[1765941481609,0.43022438,87459.0,87458.0,0.05995683]
[1765941482409,0.45479509,87459.0,87458.0,0.05995683]
[1765941482803,0.41878798,87459.0,87458.0,0.05995683]
[1765941485017,0.13158264,87480.0,87472.0,0.05771]
[1765941485205,0.01735,87490.0,87487.0,0.05771]
[1765941485206,0.38977,87488.0,87487.0,0.05771]
[1765941485402,0.41826,87488.0,87487.0,0.05771]
[1765941486317,0.41926,87488.0,87487.0,0.05771]
[1765941487509,0.05746,87488.0,87487.0,0.05771]
[1765941487709,0.05746,87488.0,87487.0,0.0691427]
[1765941488412,0.05746,87488.0,87487.0,0.05771]
[1765941490606,0.05746,87483.0,87482.0,0.38989]
[1765941491315,0.05746,87483.0,87482.0,0.41851]
[1765941492816,0.05846,87483.0,87482.0,0.41851]
[1765941493318,0.05946,87483.0,87482.0,0.41851]
[1765941493620,0.05946,87483.0,87482.0,0.38989]
[1765941493816,0.07481,87480.0,87479.0,0.05788148]
[1765941494022,0.07481,87480.0,87479.0,0.02926148]
[1765941496125,0.07581,87480.0,87479.0,0.02926148]
[1765941496621,0.07681,87480.0,87479.0,0.00017148]
[1765941497613,0.05746,87467.0,87466.0,0.41851]
[1765941498824,0.05746,87467.0,87466.0,0.41951]
[1765941499919,0.05746,87467.0,87466.0,0.42051]
[1765941500817,0.05746,87467.0,87466.0,0.41951]
[1765941501418,0.05746,87467.0,87466.0,0.41851]
[1765941503229,0.02897,87467.0,87466.0,0.41851]
[1765941503526,0.0114353,87468.0,87467.0,0.05771]
[1765941503825,0.01160588,87475.0,87474.0,0.05771]
[1765941504221,0.00017148,87475.0,87474.0,0.05771]
[1765941504923,0.05763148,87475.0,87474.0,0.05771]
[1765941505126,0.02914148,87475.0,87474.0,0.05771]
[1765941505527,0.02914148,87475.0,87474.0,0.05871]
[1765941507429,0.02914148,87475.0,87474.0,0.05771]
[1765941508925,0.05763148,87475.0,87474.0,0.05771]
[1765941512335,0.07498148,87475.0,87474.0,0.05771]
[1765941514420,0.07498148,87475.0,87474.0,0.02909]
[1765941514935,0.07498148,87475.0,87474.0,0.05765]
[1765941520340,0.04649148,87475.0,87474.0,0.05765]
[1765941520641,0.02914148,87475.0,87474.0,0.05765]
[1765941521636,0.00017148,87475.0,87474.0,0.05765]
[1765941522029,0.00017148,87475.0,87474.0,0.05865]
[1765941522639,0.00017148,87475.0,87474.0,0.05965]
[1765941523232,0.00017148,87475.0,87474.0,0.12105532]
[1765941523539,0.02461878,87475.0,87474.0,0.12005532]
[1765941523933,0.05460878,87475.0,87474.0,0.12005532]
[1765941524843,0.08287878,87475.0,87474.0,0.12005532]
[1765941525241,0.00017148,87475.0,87474.0,0.05865]
[1765941526234,0.00017148,87475.0,87474.0,0.05765]
[1765941526434,0.00017148,87475.0,87474.0,0.05865]
[1765941526834,0.00017148,87475.0,87474.0,0.05765]
[1765941527046,0.05843148,87475.0,87474.0,0.05865]
[1765941528545,0.05843148,87475.0,87474.0,0.05765]
[1765941528758,0.05843148,87475.0,87474.0,0.05865]
[1765941528936,0.03016148,87475.0,87474.0,0.05865]
[1765941529239,0.05843148,87475.0,87474.0,0.05865]
[1765941530542,0.00017148,87475.0,87474.0,0.05865]
[1765941530741,0.03016148,87475.0,87474.0,0.05865]
[1765941531441,0.03016148,87475.0,87474.0,0.05765]
[1765941531740,0.03016148,87475.0,87474.0,0.05865]
[1765941532140,0.05843148,87475.0,87474.0,0.05865]
[1765941532543,0.05843148,87475.0,87474.0,0.05965]
[1765941534044,0.00017148,87475.0,87474.0,0.05865]
[1765941534244,0.05843148,87475.0,87474.0,0.05965]
[1765941534946,0.00017148,87475.0,87474.0,0.05965]
[1765941535840,0.00017148,87475.0,87474.0,0.42045]
[1765941538442,0.00017148,87475.0,87474.0,0.41945]
[1765941538642,0.00017148,87475.0,87474.0,0.42045]
[1765941539055,0.00017148,87475.0,87474.0,0.41945]
[1765941539352,0.05843148,87475.0,87474.0,0.42045]
[1765941540444,0.00017148,87475.0,87474.0,0.42045]
[1765941540656,0.13151307,87490.0,87474.0,0.42045]
[1765941540657,0.0587726,87488.0,87487.0,0.0685927]
[1765941540854,0.02449686,87488.0,87487.0,0.0685927]
[1765941541042,0.3608,87495.0,87494.0,0.0685918]
[1765941541443,0.39079,87495.0,87494.0,0.0685918]
[1765941541648,0.3608,87495.0,87494.0,0.0685918]
[1765941542045,0.39079,87495.0,87494.0,0.05716]
[1765941542251,0.41906,87495.0,87494.0,0.05716]
[1765941543655,0.07499,87488.0,87487.0,0.11863807]
[1765941544150,0.07499,87488.0,87487.0,0.05716]
[1765941545952,0.07499,87488.0,87487.0,0.05816]
[1765941546254,0.07499,87488.0,87487.0,0.05716]
[1765941546453,0.07499,87488.0,87487.0,0.05816]
[1765941547150,0.07499,87488.0,87487.0,0.03077]
[1765941547348,0.07499,87488.0,87487.0,0.05862]
[1765941547950,0.07499,87488.0,87487.0,0.05762]
[1765941558771,0.0687327,87487.0,87486.0,0.05644148]
[1765941559465,0.0573,87487.0,87486.0,0.05644148]
[1765941561962,0.0281627,87488.0,87487.0,0.0677027]
[1765941562266,0.0565127,87488.0,87487.0,0.0677027]
[1765941562461,0.0854627,87488.0,87487.0,0.0677027]
[1765941562764,0.07403,87488.0,87487.0,0.0677027]
[1765941563159,0.07403,87488.0,87487.0,0.05627]
[1765941568370,0.07403,87488.0,87487.0,0.11774807]
[1765941569374,0.07403,87488.0,87487.0,0.05627]
[1765941569674,0.07403,87488.0,87487.0,0.11770988]
[1765941569875,0.0397825,87490.0,87489.0,0.05627]
[1765941570174,0.0687325,87490.0,87489.0,0.05627]
[1765941571280,0.0573,87489.0,87488.0,0.11770843]
[1765941571465,0.02835,87489.0,87488.0,0.11770843]
[1765941571972,0.0573,87489.0,87488.0,0.11770843]
[1765941575371,0.0573,87489.0,87488.0,0.12914103]
[1765941575771,0.0573,87489.0,87488.0,0.11770843]
[1765941578287,0.0573,87489.0,87488.0,0.05627]
[1765941579777,0.0845426,87488.0,87487.0,0.06143843]
[1765941579976,0.0845426,87488.0,87487.0,0.09029843]
[1765941580178,0.0845426,87488.0,87487.0,0.11737843]
[1765941580379,0.0845426,87488.0,87487.0,0.09029843]
[1765941580577,0.0845426,87488.0,87487.0,0.06143843]
[1765941581075,0.0845426,87488.0,87487.0,0.09029843]
[1765941581575,0.05665,87487.0,87486.0,0.00017148]
[1765941581775,0.08111403,87487.0,87486.0,0.00017148]
[1765941582380,0.05665,87474.0,87473.0,0.45109843]
[1765941582582,0.05665,87474.0,87473.0,0.41674]
[1765941584974,0.05665,87474.0,87473.0,0.05594]
[1765941585183,0.0680851,87469.0,87468.0,0.02886]
[1765941585889,0.0680851,87469.0,87468.0,0.05594]
[1765941588487,0.0690851,87469.0,87468.0,0.05594]
[1765941589194,0.05665,87469.0,87468.0,0.05594]
[1765941589394,0.05765,87469.0,87468.0,0.05594]
[1765941591590,0.05665,87469.0,87468.0,0.05594]
[1765941597395,0.01646,87472.0,87471.0,0.05594]
[1765941597601,0.0680846,87473.0,87472.0,0.05594]
[1765941598901,0.05665,87473.0,87472.0,0.05594]
[1765941601310,0.00017148,87482.0,87481.0,0.05594]
[1765941601499,0.05682148,87482.0,87481.0,0.41674]
[1765941604004,0.05682148,87482.0,87481.0,0.41774]
[1765941606704,0.00017148,87482.0,87481.0,0.41674]
[1765941607408,0.00017148,87482.0,87481.0,0.41874]
[1765941608311,0.00017148,87482.0,87481.0,0.42074]
[1765941609402,0.00017148,87482.0,87481.0,0.41874]
[1765941609604,0.00017148,87482.0,87481.0,0.42074]
[1765941611698,0.00017148,87482.0,87481.0,0.41874]
[1765941611900,0.00017148,87482.0,87481.0,0.42074]
[1765941612311,0.00017148,87482.0,87481.0,0.41874]
[1765941612502,0.00017148,87482.0,87481.0,0.42074]
[1765941613808,0.00017148,87482.0,87481.0,0.41874]
[1765941614206,0.00017148,87482.0,87481.0,0.42074]
[1765941614406,0.00017148,87482.0,87481.0,0.41874]
[1765941614712,0.00017148,87482.0,87481.0,0.42074]
[1765941615012,0.00017148,87482.0,87481.0,0.41874]
[1765941615310,0.00017148,87482.0,87481.0,0.42074]
[1765941616402,0.00017148,87482.0,87481.0,0.41874]
[1765941616605,0.00017148,87482.0,87481.0,0.42074]
[1765941618416,0.00017148,87482.0,87481.0,0.41874]
[1765941618901,0.00017148,87482.0,87481.0,0.41974]
[1765941619602,0.00017148,87482.0,87481.0,0.42074]
[1765941619807,0.00017148,87482.0,87481.0,1.13514]
[1765941620102,0.00017148,87482.0,87481.0,1.13314]
[1765941620602,0.00017148,87482.0,87481.0,1.13514]
[1765941621414,0.00017148,87482.0,87481.0,1.13314]
[1765941621614,0.00017148,87482.0,87481.0,1.13514]
[1765941621915,0.00017148,87482.0,87481.0,1.13314]
[1765941622209,0.00017148,87482.0,87481.0,1.13514]
[1765941623614,0.00017148,87482.0,87481.0,1.13314]
[1765941623802,0.00017148,87482.0,87481.0,1.13514]
[1765941624219,0.00017148,87482.0,87481.0,1.13314]
[1765941624516,0.00017148,87482.0,87481.0,1.13514]
[1765941624815,0.00017148,87482.0,87481.0,1.13314]
[1765941625007,0.00017148,87482.0,87481.0,1.13414]
[1765941626014,0.00017148,87482.0,87481.0,1.1341]
[1765941626615,0.05785148,87482.0,87481.0,1.1321]
[1765941626808,0.05785148,87482.0,87481.0,1.1341]
[1765941627208,0.05785148,87482.0,87481.0,1.1321]
[1765941627410,0.05785148,87482.0,87481.0,1.1331]
[1765941628404,0.02902148,87482.0,87481.0,1.1331]
[1765941631813,0.00017148,87482.0,87481.0,1.1331]
[1765941632810,0.05785148,87482.0,87481.0,1.1331]
[1765941633311,0.05785148,87482.0,87481.0,1.21455149]
[1765941635518,0.05785148,87482.0,87481.0,1.1331]
[1765941637018,0.00017148,87482.0,87481.0,1.1321]
[1765941637420,0.00017148,87482.0,87481.0,1.1331]
[1765941647626,0.00017148,87482.0,87481.0,1.21525946]
[1765941657226,0.00017148,87482.0,87481.0,0.85445946]
[1765941657433,0.00017148,87482.0,87481.0,1.21525946]
[1765941657627,0.00017148,87482.0,87481.0,1.1331]
[1765941659934,0.3608,87501.0,87500.0,0.068221]
[1765941660125,0.0114307,87503.0,87502.0,0.05679]
[1765941660326,0.0690603,87506.0,87505.0,0.05679]
[1765941660525,0.09340251,87506.0,87505.0,0.05679]
[1765941660721,0.03577251,87506.0,87505.0,0.05679]
[1765941661126,0.06367251,87506.0,87505.0,0.05679]
[1765941661522,0.09340251,87506.0,87505.0,0.05679]
[1765941662539,0.09540251,87506.0,87505.0,0.05679]
[1765941663233,0.0730603,87506.0,87505.0,0.05679]
[1765941663844,0.0710603,87506.0,87505.0,0.05679]
[1765941664929,0.0690603,87506.0,87505.0,0.05679]
[1765941671139,0.05763,87506.0,87505.0,0.05679]
[1765941671937,0.05763,87506.0,87505.0,0.02925]
[1765941672135,0.05763,87506.0,87500.0,0.3608]
[1765941672136,0.0859009,87501.0,87500.0,0.3608]
[1765941672342,0.05813,87499.0,87498.0,0.01160176]
[1765941672731,0.0695613,87498.0,87497.0,0.00017148]
[1765941673741,0.0695613,87498.0,87497.0,0.02762148]
[1765941674840,0.0695613,87498.0,87497.0,0.05564148]
[1765941675042,0.0705613,87498.0,87497.0,0.05564148]
[1765941676637,0.05913,87498.0,87497.0,0.05564148]
[1765941677632,0.08343009,87498.0,87497.0,0.05564148]
[1765941678432,0.08243009,87498.0,87497.0,0.05564148]
[1765941678741,0.001,87498.0,87497.0,0.05564148]
[1765941678932,0.05913,87498.0,87497.0,0.05564148]
[1765941679132,0.05913,87498.0,87497.0,0.05664148]
[1765941679333,0.05813,87498.0,87497.0,0.05664148]
[1765941680135,0.02972,87498.0,87497.0,0.05664148]
[1765941680340,0.05813,87498.0,87497.0,0.05664148]
[1765941682246,0.05813,87498.0,87497.0,0.00117148]
[1765941682735,0.05813,87498.0,87497.0,0.02862148]
[1765941682931,0.05813,87498.0,87497.0,0.00117148]
[1765941683333,0.05813,87498.0,87497.0,0.02862148]
[1765941683543,0.05813,87498.0,87497.0,0.00117148]
[1765941684147,0.05813,87498.0,87497.0,0.02762148]
[1765941684353,0.05813,87498.0,87497.0,0.05564148]
[1765941685152,0.05913,87498.0,87497.0,0.05564148]
[1765941685345,0.08342653,87498.0,87497.0,0.05564148]
[1765941687648,0.05913,87498.0,87497.0,0.05564148]
[1765941687850,0.05813,87498.0,87497.0,0.05564148]
[1765941688156,0.05913,87498.0,87497.0,0.05564148]
[1765941689358,0.05913,87498.0,87497.0,0.11721553]
[1765941694661,0.03072,87498.0,87497.0,0.11721553]
[1765941695163,0.05849,87498.0,87497.0,0.11721553]
[1765941698370,0.05849,87498.0,87497.0,0.05564148]
[1765941711666,0.001,87498.0,87497.0,0.05564148]
[1765941711862,0.0301,87498.0,87497.0,0.05564148]
[1765941712472,0.05838,87498.0,87497.0,0.05564148]
[1765941712969,0.07621,87498.0,87497.0,0.05564148]
[1765941713159,0.0301,87498.0,87497.0,0.05564148]
[1765941713671,0.05838,87498.0,87497.0,0.05564148]
[1765941714965,0.0301,87498.0,87497.0,0.05564148]
[1765941715166,0.001,87498.0,87497.0,0.05564148]
[1765941716078,0.0301,87498.0,87497.0,0.05564148]
[1765941716473,0.05838,87498.0,87497.0,0.05564148]
[1765941716872,0.07621,87498.0,87497.0,0.05564148]
[1765941717574,0.1005871,87498.0,87497.0,0.05564148]
[1765941720574,0.1005871,87498.0,87497.0,0.11723681]
[1765941720776,0.1005871,87498.0,87497.0,0.05564148]
[1765941727581,0.07621,87498.0,87497.0,0.05564148]
[1765941736090,0.07621,87498.0,87497.0,0.00017148]
[1765941737489,0.07621,87498.0,87497.0,0.02953148]
[1765941737992,0.07621,87498.0,87497.0,0.00017148]
[1765941738487,0.4613877,87498.0,87497.0,0.00017148]
[1765941738792,0.4613877,87498.0,87497.0,0.02953148]
[1765941739293,0.4613877,87498.0,87497.0,0.00017148]
[1765941747596,0.4613877,87498.0,87497.0,0.05880148]
[1765941748094,0.4613877,87498.0,87497.0,0.02953148]
[1765941751504,0.4613877,87498.0,87497.0,0.00017148]
[1765941751999,0.4613877,87498.0,87497.0,1.48e-06]
[1765941756504,0.4613877,87498.0,87497.0,0.05671148]
[1765941757702,0.1005877,87498.0,87497.0,0.05671148]
[1765941758211,0.10051713,87498.0,87497.0,0.05671148]
[1765941758803,0.10051713,87498.0,87497.0,0.02960148]
[1765941759406,0.10051713,87498.0,87497.0,0.05671148]
[1765941771730,0.001,87498.0,87497.0,0.06814288]
[1765941771934,0.001,87498.0,87497.0,0.42894288]
[1765941772234,0.0767,87498.0,87497.0,0.42894288]
[1765941775938,0.001,87498.0,87497.0,0.42894288]
[1765941776141,0.001,87498.0,87497.0,0.49038288]
[1765941776837,0.001,87498.0,87497.0,0.42894288]
[1765941777033,0.0114308,87502.0,87501.0,0.0668509]
[1765941777538,0.07532,87507.0,87506.0,0.05542]
[1765941777731,0.02814,87507.0,87506.0,0.05542]
[1765941778242,0.0757,87512.0,87511.0,0.05542]
[1765941778538,0.11145185,87512.0,87511.0,0.05542]
[1765941779138,0.0114295,87512.0,87511.0,0.05542]
[1765941779529,0.0871295,87512.0,87511.0,0.05542]
[1765941779942,0.0891295,87512.0,87511.0,0.05542]
[1765941780149,0.0911295,87512.0,87511.0,0.05542]
[1765941791247,0.0869805,87504.0,87503.0,0.11943882]
[1765941791460,0.0869805,87504.0,87503.0,0.05801]
[1765941792338,0.0869805,87504.0,87502.0,0.06142882]
[1765941792339,0.05781,87503.0,87502.0,0.06142882]
[1765941792541,0.029171,87500.0,87496.0,0.06142882]
[1765941792854,0.3608,87498.0,87493.0,0.02818]
[1765941793051,0.3608,87498.0,87493.0,0.08960882]
[1765941793248,0.3608,87498.0,87493.0,0.02818]
[1765941794249,0.3618,87498.0,87493.0,0.02818]
[1765941795251,0.3618,87498.0,87493.0,0.08960882]
[1765941796754,0.38612167,87498.0,87487.0,0.06142882]
[1765941796941,0.05781,87489.0,87488.0,0.13147652]
[1765941797144,0.07555,87488.0,87487.0,0.08960882]
[1765941797353,0.07555,87488.0,87487.0,0.02818]
[1765941798048,0.07555,87488.0,87487.0,0.02918]
[1765941799261,0.07555,87488.0,87487.0,0.05901]
[1765941799650,0.07555,87488.0,87487.0,0.05801]
[1765941801658,0.05781,87486.0,87485.0,0.08960882]
[1765941801850,0.05781,87486.0,87485.0,0.11943882]
[1765941804147,0.05781,87486.0,87485.0,0.12043882]
[1765941804365,0.05781,87486.0,87485.0,0.05901]
[1765941805762,0.05781,87486.0,87485.0,0.05801]
[1765941805952,0.05781,87486.0,87485.0,0.05901]
[1765941812665,0.05781,87486.0,87485.0,0.05801]
[1765941813763,0.05781,87486.0,87485.0,0.05901]
[1765941816664,0.07444,87486.0,87485.0,0.05901]
[1765941817364,0.07444,87486.0,87485.0,0.12043882]
[1765941819270,0.07444,87486.0,87485.0,0.05901]
[1765941822071,0.07444,87486.0,87485.0,0.05801]
[1765941822973,0.07444,87486.0,87485.0,0.05901]
[1765941824064,0.07444,87486.0,87485.0,0.05801]
[1765941826677,0.05845,87481.0,87480.0,0.08210806]
[1765941826881,0.0865136,87480.0,87479.0,0.00017148]
[1765941827171,0.47164896,87480.0,87479.0,0.00017148]
[1765941828673,0.47264896,87480.0,87479.0,0.00117148]
[1765941829280,0.47364896,87480.0,87479.0,0.00017148]
[1765941831273,0.4493136,87480.0,87479.0,0.00017148]
[1765941831674,0.4483136,87480.0,87479.0,0.00017148]
[1765941831979,0.0865147,87472.0,87471.0,9.999e-05]
[1765941833179,0.4473147,87472.0,87471.0,9.999e-05]
[1765941833482,0.47168751,87472.0,87471.0,9.999e-05]
[1765941834270,0.4683147,87472.0,87471.0,9.999e-05]
[1765941834781,0.0865157,87464.0,87463.0,0.00011504]
[1765941835082,0.4473157,87464.0,87463.0,0.00011504]
[1765941835676,0.44739598,87464.0,87463.0,0.00011504]
[1765941836078,0.44739598,87464.0,87463.0,0.02767504]
[1765941836580,0.44839598,87464.0,87463.0,0.02767504]
[1765941837484,0.44839598,87464.0,87463.0,0.05539504]
[1765941838284,0.44839598,87464.0,87463.0,0.00011504]
[1765941839179,0.44839598,87464.0,87463.0,0.02767504]
[1765941839383,0.44739598,87464.0,87463.0,0.05539504]
[1765941840383,0.44839598,87464.0,87463.0,0.05539504]
[1765941840980,0.07616028,87464.0,87463.0,0.05539504]
[1765941842983,0.07516028,87464.0,87463.0,0.05539504]
[1765941843471,0.07516028,87464.0,87463.0,0.05639504]
[1765941845281,0.07516028,87464.0,87463.0,0.05539504]
[1765941845986,0.07516028,87464.0,87463.0,0.00011504]
[1765941846485,0.07516028,87464.0,87463.0,0.05755504]
[1765941847496,0.07616028,87464.0,87463.0,0.05755504]
[1765941848891,0.07516028,87464.0,87463.0,0.05755504]
[1765941850180,0.02942028,87464.0,87463.0,0.05755504]
[1765941850392,8.028e-05,87464.0,87463.0,0.05755504]
[1765941851078,0.07362028,87464.0,87463.0,0.05755504]
[1765941851284,0.07362028,87464.0,87463.0,0.02781504]
[1765941851683,0.07362028,87464.0,87463.0,0.05755504]
[1765941852279,0.07362028,87464.0,87463.0,0.05855504]
[1765941852890,0.07362028,87464.0,87463.0,0.05755504]
[1765941856990,0.07362028,87464.0,87463.0,0.05855504]
[1765941857885,0.07362028,87464.0,87463.0,0.00111504]
[1765941858278,0.07362028,87464.0,87463.0,0.06276059]